fUSD/lending_fUSD_20250502
["ID","MTS","AMOUNT","RATE_DAILY","PERIOD"]
[359644632,1746213056968,-450.0,0.00019998,2]
[359644633,1746213056979,-544.15,0.00019998,2]
[359644634,1746213056990,-738.21,0.00019998,2]
[359644635,1746213057002,-450.0,0.00019998,2]
[359644636,1746213057016,-450.0,0.00019998,2]
[359644637,1746213057030,-558.22,0.00019998,2]
[359644638,1746213057040,-450.0,0.00019998,2]
[359644639,1746213057051,-790.8,0.00019998,2]
[359644640,1746213057062,-450.0,0.00019998,2]
[359644641,1746213057074,-573.84,0.00019998,2]
[359644642,1746213057089,-450.0,0.00019998,2]
[359644643,1746213057103,-450.0,0.00019998,2]
[359644644,1746213057115,-614.75,0.00019998,2]
[359644645,1746213057126,-1076.9,0.00019998,2]
[359644646,1746213057137,-542.66,0.00019998,2]
[359644647,1746213057148,-450.0,0.00019998,2]
[359644648,1746213057162,-450.0,0.00019998,2]
[359644649,1746213057173,-1497.12,0.00019998,2]
[359644650,1746213057184,-450.0,0.00019998,2]
[359644651,1746213057196,-450.0,0.00019998,2]
[359644652,1746213057207,-450.0,0.00019998,2]
[359644653,1746213057218,-500.0,0.00019999,2]
[359644654,1746213057229,-500.0,0.00019999,2]
[359644655,1746213057240,-500.0,0.00019999,2]
[359644656,1746213057251,-500.0,0.00019999,2]
[359644657,1746213057262,-500.0,0.00019999,2]
[359644658,1746213057274,-300.0,0.00019999,2]
[359644659,1746213057285,-675.05638042,0.00019999,2]
[359644660,1746213057297,-500.0,0.00019999,2]
[359644661,1746213057308,-1000.0,0.00019999,2]
[359644662,1746213057318,-4881.35677706,0.00019999,2]
[359644663,1746213057330,-1000381.92124011,0.0002,2]
[359644664,1746213057344,-6909.86987418,0.0002,4]
[359644665,1746213057355,-1402496.64250012,0.0002,2]
[359644666,1746213058241,-9717.40000012,0.0002,2]
[359644667,1746213058363,-1065362.59363522,0.0002,2]
[359644668,1746213058819,-1978.5085,0.00019655,2]
[359644669,1746213059307,-1331.94099509,0.00019655,2]
[359644670,1746213059339,-687.014767,0.00019724,2]
[359644671,1746213059361,-687.014767,0.00019724,2]
[359644672,1746213059371,-687.014767,0.00019724,2]
[359644673,1746213059382,-687.014767,0.00019724,2]
[359644674,1746213059393,-687.014767,0.00019724,2]
[359644675,1746213059404,-289.45316991,0.00019725,2]
[359644676,1746213059417,-397.56159709,0.00019725,2]
[359644677,1746213059428,-43.81441701,0.00019725,2]
[359644678,1746213175192,3000.0,0.00019205,2]
[359644679,1746213306858,4264.44,0.00019,2]
[359644682,1746213447893,1367.44929378,0.00018828,2]
[359644683,1746213447915,10000.0,0.00018828,2]
[359644684,1746213447938,10000.0,0.00018828,2]
[359644685,1746213447959,2532.55070622,0.00018828,2]
[359644686,1746213449694,-472.21196135,0.00019624,2]
[359644687,1746213449714,-159.23444445,0.00019624,2]
[359644688,1746213449737,-2368.5535942,0.00019624,2]
[359644689,1746213455852,-1099.7678324,0.00019624,2]
[359644690,1746213455873,-1900.2321676,0.00019624,2]
[359644691,1746213462587,-505.6360324,0.00019624,2]
[359644692,1746213462611,-472.21196135,0.00019655,2]
[359644693,1746213462633,-2022.15200625,0.00019655,2]
[359644694,1746213468938,-1446.16942026,0.00019655,2]
[359644695,1746213468959,-159.23444445,0.0001967,2]
[359644696,1746213468981,-1200.0,0.00019684,2]
[359644697,1746213469007,-194.59613529,0.00019684,2]
[359644698,1746213475595,-105.40386471,0.00019684,2]
[359644699,1746213475619,-472.21196135,0.00019685,2]
[359644700,1746213475639,-2422.38417394,0.00019685,2]
[359644701,1746213482986,-222.83168776,0.00019624,2]
[359644702,1746213483010,-1045.93725257,0.00019685,2]
[359644703,1746213483034,-157.88228322,0.000197,2]
[359644704,1746213483056,-300.0,0.00019715,2]
[359644705,1746213483079,-472.21196135,0.00019716,2]
[359644706,1746213483101,-159.23444445,0.00019716,2]
[359644707,1746213483122,-641.90237065,0.00019716,2]
[359644708,1746213494853,-2826.41905586,0.00019716,2]
[359644709,1746213494883,-173.46165176,0.00019722,2]
[359644710,1746213494908,-0.11929238,0.00019723,2]
[359644711,1746213502569,-364.34354993,0.00019723,2]
[359644712,1746213502591,-578.91,0.00019723,2]
[359644713,1746213502613,-450.0,0.00019723,2]
[359644714,1746213502635,-450.0,0.00019723,2]
[359644715,1746213502656,-450.0,0.00019723,2]
[359644716,1746213502677,-298.56431226,0.00019723,2]
[359644717,1746213502699,-408.18213781,0.00019723,2]
[359644718,1746213510646,-41.81786219,0.00019723,2]
[359644719,1746213510667,-450.0,0.00019723,2]
[359644720,1746213510689,-607.07,0.00019723,2]
[359644721,1746213510710,-450.0,0.00019723,2]
[359644722,1746213510731,-902.28,0.00019723,2]
[359644723,1746213510752,-450.0,0.00019723,2]
[359644724,1746213510774,-98.83213781,0.00019723,2]
[359644725,1746213517742,-351.16786219,0.00019723,2]
[359644726,1746213517763,-450.0,0.00019723,2]
[359644727,1746213517785,-450.0,0.00019723,2]
[359644728,1746213517807,-450.0,0.00019723,2]
[359644729,1746213517828,-450.0,0.00019723,2]
[359644730,1746213517849,-450.0,0.00019723,2]
[359644731,1746213517870,-398.83213781,0.00019723,2]
[359644733,1746213525002,-51.16786219,0.00019723,2]
[359644734,1746213525023,-406.62245349,0.00019723,2]
[359644735,1746213525051,-479.878237,0.00019723,2]
[359644736,1746213525072,-450.0,0.00019723,2]
[359644737,1746213525094,-450.0,0.00019723,2]
[359644738,1746213525114,-450.0,0.00019723,2]
[359644739,1746213525134,-691.71,0.00019723,2]
[359644740,1746213525156,-20.62144732,0.00019723,2]
[359644741,1746213532677,-429.37855268,0.00019723,2]
[359644742,1746213532700,-450.0,0.00019723,2]
[359644743,1746213532722,-464.28,0.00019723,2]
[359644744,1746213532744,-450.0,0.00019723,2]
[359644745,1746213532765,-450.0,0.00019723,2]
[359644746,1746213532786,-450.0,0.00019723,2]
[359644747,1746213532807,-306.34144732,0.00019723,2]
[359644748,1746213539923,-143.65855268,0.00019723,2]
[359644749,1746213539944,-450.0,0.00019723,2]
[359644750,1746213539965,-450.0,0.00019723,2]
[359644751,1746213539987,-738.960343,0.00019723,2]
[359644752,1746213540008,-450.0,0.00019723,2]
[359644753,1746213540030,-450.0,0.00019723,2]
[359644754,1746213540054,-317.38110432,0.00019723,2]
[359644757,1746213655879,500.0,0.00019,2]
[359644760,1746213876955,673.36,0.00016934,2]
[359644761,1746213877550,673.36,0.00019198,2]
[359644765,1746213955467,508.33,0.000312,120]
[359644766,1746213955758,508.33,0.000315,120]
[359644767,1746213956067,508.33,0.000318,120]
[359644768,1746213956385,508.33,0.000322,120]
[359644769,1746213956686,508.33,0.000325,120]
[359644770,1746213956984,508.33,0.000328,120]
[359644771,1746213977130,250.0,0.00018851,7]
[359644772,1746213990604,1457.32416718,0.00015,2]
[359644773,1746214014595,500.0,0.00032876,120]
[359644774,1746214014676,500.0,0.00032876,120]
[359644775,1746214014778,500.0,0.00032876,120]
[359644776,1746214015040,500.0,0.00032876,120]
[359644777,1746214015260,500.0,0.00032876,120]
[359644778,1746214015490,500.0,0.00032876,120]
[359644779,1746214015730,500.0,0.00032876,120]
[359644780,1746214015964,500.0,0.00032876,120]
[359644781,1746214016199,500.0,0.00032876,120]
[359644782,1746214016579,500.0,0.00032876,120]
[359644783,1746214016823,500.0,0.00032876,120]
[359644784,1746214017059,500.0,0.00032876,120]
[359644785,1746214017301,500.0,0.00032876,120]
[359644786,1746214017541,500.0,0.00032876,120]
[359644787,1746214017800,500.0,0.00032876,120]
[359644788,1746214018034,500.0,0.00032876,120]
[359644789,1746214018276,500.0,0.00032876,120]
[359644790,1746214018520,500.0,0.00032876,120]
[359644791,1746214018767,500.0,0.00032876,120]
[359644792,1746214019030,500.0,0.00032876,120]
[359644793,1746214019743,177.63154875,0.00032876,120]
[359644794,1746214025939,724.42105034,0.00032876,60]
[359644795,1746214031368,4009.94232269,0.00015,2]
[359644796,1746214034769,153.46280391,0.00015,2]
[359644797,1746214034791,10000.0,0.00015,2]
[359644798,1746214034812,3761.39691213,0.00015,2]
[359644799,1746214076666,6238.60308787,0.0001,2]
[359644800,1746214076687,5923.02860894,0.0001,2]
[359644801,1746214078691,1717.50085049,0.000181,2]
[359644802,1746214086491,1000.0,0.00018851,2]
[359644803,1746214095016,1359.47054057,0.0001439,2]
[359644804,1746214095037,640.52945943,0.0001439,2]
[359644805,1746214096544,200.0,0.0001634,2]
[359644806,1746214106091,250.0,0.00017,2]
[359644807,1746214107135,300.0,0.00019,2]
[359644808,1746214116447,3574.83959443,0.000149,2]
[359644811,1746214125614,5034.63094614,0.00013368,2]
[359644812,1746214125636,5445.42593585,0.00013368,2]
[359644816,1746214231871,-851.0101586,0.00019622,2]
[359644817,1746214231926,-348.9898414,0.00019622,2]
[359644818,1746214231936,-17.81367813,0.00019622,2]
[359644819,1746214231947,-1331.81064871,0.00019622,2]
[359644820,1746214231981,-2089.0067041,0.00019622,2]
[359644821,1746214231991,-300.0,0.00019622,2]
[359644822,1746214232000,-250.0,0.00019623,2]
[359644823,1746214232010,-161.69193293,0.00019623,2]
[359644824,1746214232019,-170.55136287,0.00019623,2]
[359644825,1746214232036,-52.28032489,0.00019623,2]
[359644826,1746214232046,-2427.30156379,0.00019623,2]
[359644827,1746214232057,-505.6361,0.00019623,2]
[359644828,1746214232066,-869.8198,0.00019623,2]
[359644829,1746214232076,-3438.63103094,0.00019653,2]
[359644830,1746214232086,-2427.30156377,0.00019654,2]
[359644831,1746214232096,-161.69193291,0.00019663,2]
[359644832,1746214232105,-3438.63103094,0.00019684,2]
[359644833,1746214232115,-2427.30156377,0.00019685,2]
[359644834,1746214232125,-157.88228322,0.000197,2]
[359644835,1746214232135,-161.69193291,0.00019702,2]
[359644836,1746214232145,-3438.63103094,0.00019715,2]
[359644837,1746214232154,-996.61691161,0.00019715,2]
[359644842,1746214237912,-1143.04470149,0.00019715,2]
[359644843,1746214237924,-287.63995067,0.00019715,2]
[359644844,1746214237933,-173.46165176,0.00019721,2]
[359644845,1746214237943,-171.48611969,0.00019721,2]
[359644846,1746214237969,-1222.36468684,0.00019721,2]
[359644847,1746214237980,-3264.90742431,0.00019721,2]
[359644848,1746214238023,-1659.72149004,0.00019721,2]
[359644865,1746214239928,-7101.03798774,0.00019721,2]
[359644866,1746214239938,-569.289929,0.00019722,2]
[359644867,1746214239949,-450.0,0.00019722,2]
[359644868,1746214239959,-450.0,0.00019722,2]
[359644869,1746214239969,-450.0,0.00019722,2]
[359644870,1746214239979,-450.0,0.00019722,2]
[359644871,1746214239988,-682.117239,0.00019722,2]
[359644872,1746214239997,-450.0,0.00019722,2]
[359644873,1746214240009,-450.0,0.00019722,2]
[359644874,1746214240020,-450.0,0.00019722,2]
[359644875,1746214240030,-450.0,0.00019722,2]
[359644876,1746214240039,-815.78,0.00019722,2]
[359644877,1746214240049,-8569.01,0.00019722,2]
[359644878,1746214240059,-450.0,0.00019722,2]
[359644879,1746214240068,-450.0,0.00019722,2]
[359644880,1746214240078,-450.0,0.00019722,2]
[359644881,1746214240087,-504.91495127,0.00019722,2]
[359644882,1746214240098,-450.0,0.00019722,2]
[359644883,1746214240107,-477.38,0.00019722,2]
[359644884,1746214240117,-450.0,0.00019722,2]
[359644885,1746214240126,-450.0,0.00019722,2]
[359644886,1746214240135,-450.0,0.00019722,2]
[359644887,1746214240145,-450.0,0.00019722,2]
[359644888,1746214240155,-162.49551117,0.00019722,2]
[359644889,1746214240165,-360.87615584,0.00019722,2]
[359644890,1746214240174,-500.0,0.00019722,2]
[359644891,1746214240183,-412.38084859,0.00019722,2]
[359644892,1746214240193,-450.0,0.00019722,2]
[359644893,1746214240202,-450.0,0.00019722,2]
[359644894,1746214240212,-473.06,0.00019722,2]
[359644895,1746214240223,-450.0,0.00019722,2]
[359644896,1746214240232,-450.0,0.00019722,2]
[359644897,1746214240242,-450.0,0.00019722,2]
[359644898,1746214240251,-450.0,0.00019722,2]
[359644899,1746214240260,-450.0,0.00019722,2]
[359644900,1746214240269,-627.91,0.00019722,2]
[359644901,1746214240279,-450.0,0.00019722,2]
[359644902,1746214240289,-460.85,0.00019722,2]
[359644903,1746214240298,-450.0,0.00019722,2]
[359644904,1746214240307,-450.0,0.00019722,2]
[359644905,1746214240317,-450.0,0.00019722,2]
[359644906,1746214240326,-8904.05024235,0.00019722,2]
[359644907,1746214240339,-861.52056566,0.00019722,2]
[359644917,1746214241093,-106655.94919199,0.00019722,2]
[359644918,1746214241103,-496.89,0.00019722,2]
[359644919,1746214241113,-450.0,0.00019722,2]
[359644920,1746214241123,-450.0,0.00019722,2]
[359644921,1746214241132,-450.0,0.00019722,2]
[359644922,1746214241142,-450.0,0.00019722,2]
[359644923,1746214241151,-484.04,0.00019722,2]
[359644924,1746214241161,-1287.6,0.00019722,2]
[359644925,1746214241170,-568.74,0.00019722,2]
[359644926,1746214241179,-510.33,0.00019722,2]
[359644927,1746214241189,-827.16,0.00019722,2]
[359644928,1746214241198,-450.0,0.00019722,2]
[359644929,1746214241208,-1220.23,0.00019722,2]
[359644930,1746214241217,-450.0,0.00019722,2]
[359644931,1746214241226,-5435.76,0.00019722,2]
[359644932,1746214241236,-450.0,0.00019722,2]
[359644933,1746214241245,-450.0,0.00019722,2]
[359644934,1746214241254,-586.26,0.00019722,2]
[359644935,1746214241265,-450.0,0.00019722,2]
[359644936,1746214241274,-450.0,0.00019722,2]
[359644937,1746214241283,-450.0,0.00019722,2]
[359644938,1746214241293,-450.0,0.00019722,2]
[359644939,1746214241302,-450.0,0.00019722,2]
[359644940,1746214241311,-509.47,0.00019722,2]
[359644941,1746214241320,-450.0,0.00019722,2]
[359644942,1746214241330,-450.0,0.00019722,2]
[359644943,1746214241340,-280.25488685,0.00019722,2]
[359644944,1746214241349,-450.0,0.00019722,2]
[359644945,1746214241359,-502.92,0.00019722,2]
[359644946,1746214241369,-450.0,0.00019722,2]
[359644947,1746214241379,-450.0,0.00019722,2]
[359644948,1746214241390,-450.0,0.00019722,2]
[359644949,1746214241399,-543.46,0.00019722,2]
[359644950,1746214241408,-450.0,0.00019722,2]
[359644951,1746214241419,-549.93,0.00019722,2]
[359644952,1746214241432,-450.0,0.00019722,2]
[359644953,1746214241441,-3368.23,0.00019722,2]
[359644954,1746214241451,-450.0,0.00019722,2]
[359644955,1746214241460,-450.0,0.00019722,2]
[359644956,1746214241471,-450.0,0.00019722,2]
[359644957,1746214241481,-1884.48,0.00019722,2]
[359644958,1746214241490,-1080.62,0.00019722,2]
[359644959,1746214241502,-450.0,0.00019722,2]
[359644960,1746214241511,-450.0,0.00019722,2]
[359644961,1746214241521,-450.0,0.00019723,2]
[359644962,1746214241531,-450.0,0.00019723,2]
[359644963,1746214241540,-450.0,0.00019723,2]
[359644964,1746214241549,-250.0,0.00019723,2]
[359644965,1746214241559,-450.0,0.00019723,2]
[359644966,1746214241569,-450.0,0.00019723,2]
[359644967,1746214241578,-450.0,0.00019723,2]
[359644968,1746214241593,-450.0,0.00019723,2]
[359644969,1746214241602,-450.0,0.00019723,2]
[359644970,1746214241612,-450.0,0.00019723,2]
[359644971,1746214241621,-450.0,0.00019723,2]
[359644972,1746214241631,-450.0,0.00019723,2]
[359644973,1746214241640,-450.0,0.00019723,2]
[359644974,1746214241650,-450.0,0.00019723,2]
[359644975,1746214241659,-450.0,0.00019723,2]
[359644976,1746214241669,-450.0,0.00019723,2]
[359644977,1746214241679,-450.0,0.00019723,2]
[359644978,1746214241689,-450.0,0.00019723,2]
[359644979,1746214241699,-450.0,0.00019723,2]
[359644980,1746214241713,-450.0,0.00019723,2]
[359644981,1746214241723,-450.0,0.00019723,2]
[359644982,1746214241733,-450.0,0.00019723,2]
[359644983,1746214241742,-949.19,0.00019723,2]
[359644984,1746214241752,-450.0,0.00019723,2]
[359644985,1746214241762,-450.0,0.00019723,2]
[359644986,1746214241772,-450.0,0.00019723,2]
[359644987,1746214241782,-450.0,0.00019723,2]
[359644988,1746214241791,-450.0,0.00019723,2]
[359644989,1746214241803,-450.0,0.00019723,2]
[359644990,1746214241813,-450.0,0.00019723,2]
[359644991,1746214241823,-450.0,0.00019723,2]
[359644992,1746214241833,-450.0,0.00019723,2]
[359644993,1746214241843,-543.65,0.00019723,2]
[359644994,1746214241853,-450.0,0.00019723,2]
[359644995,1746214241863,-450.0,0.00019723,2]
[359644996,1746214241872,-450.0,0.00019723,2]
[359644997,1746214241882,-450.0,0.00019723,2]
[359644998,1746214241892,-701.9,0.00019723,2]
[359644999,1746214241903,-450.0,0.00019723,2]
[359645000,1746214241913,-450.0,0.00019723,2]
[359645001,1746214241923,-450.0,0.00019723,2]
[359645002,1746214241933,-450.0,0.00019723,2]
[359645003,1746214241944,-450.0,0.00019723,2]
[359645004,1746214241954,-450.0,0.00019723,2]
[359645005,1746214241964,-662.63,0.00019723,2]
[359645006,1746214241974,-450.0,0.00019723,2]
[359645007,1746214241983,-450.0,0.00019723,2]
[359645008,1746214241992,-464.07,0.00019723,2]
[359645009,1746214242002,-450.0,0.00019723,2]
[359645010,1746214242011,-450.0,0.00019723,2]
[359645011,1746214242022,-450.0,0.00019723,2]
[359645012,1746214242031,-450.0,0.00019723,2]
[359645013,1746214242041,-450.0,0.00019723,2]
[359645014,1746214242051,-450.0,0.00019723,2]
[359645015,1746214242060,-450.0,0.00019723,2]
[359645016,1746214242070,-450.0,0.00019723,2]
[359645017,1746214242080,-450.0,0.00019723,2]
[359645018,1746214242090,-530.44,0.00019723,2]
[359645019,1746214242100,-450.0,0.00019723,2]
[359645020,1746214242110,-450.0,0.00019723,2]
[359645021,1746214242119,-450.0,0.00019723,2]
[359645022,1746214242129,-450.0,0.00019723,2]
[359645023,1746214242138,-450.0,0.00019723,2]
[359645024,1746214242148,-450.0,0.00019723,2]
[359645025,1746214242157,-744.58,0.00019723,2]
[359645026,1746214242167,-450.0,0.00019723,2]
[359645027,1746214242177,-634.06,0.00019723,2]
[359645028,1746214242187,-450.0,0.00019723,2]
[359645029,1746214242197,-450.0,0.00019723,2]
[359645030,1746214242207,-450.0,0.00019723,2]
[359645031,1746214242217,-508.53,0.00019723,2]
[359645032,1746214242226,-450.0,0.00019723,2]
[359645033,1746214242236,-450.0,0.00019723,2]
[359645034,1746214242246,-450.0,0.00019723,2]
[359645035,1746214242256,-450.0,0.00019723,2]
[359645036,1746214242266,-544.78,0.00019723,2]
[359645037,1746214242276,-450.0,0.00019723,2]
[359645038,1746214242285,-450.0,0.00019723,2]
[359645039,1746214242295,-450.0,0.00019723,2]
[359645040,1746214242304,-450.0,0.00019723,2]
[359645041,1746214242314,-991.91,0.00019723,2]
[359645042,1746214242324,-302.32396757,0.00019723,2]
[359645043,1746214242333,-450.0,0.00019723,2]
[359645044,1746214242343,-450.0,0.00019723,2]
[359645045,1746214242353,-450.0,0.00019723,2]
[359645046,1746214242363,-450.0,0.00019723,2]
[359645047,1746214242373,-450.0,0.00019723,2]
[359645048,1746214242382,-450.0,0.00019723,2]
[359645049,1746214242391,-450.0,0.00019723,2]
[359645050,1746214242401,-492.61,0.00019723,2]
[359645051,1746214242411,-450.0,0.00019723,2]
[359645052,1746214242422,-450.0,0.00019723,2]
[359645053,1746214242435,-450.0,0.00019723,2]
[359645054,1746214242444,-450.0,0.00019723,2]
[359645055,1746214242454,-450.0,0.00019723,2]
[359645056,1746214242465,-450.0,0.00019723,2]
[359645057,1746214242474,-450.0,0.00019723,2]
[359645058,1746214242483,-486.56,0.00019723,2]
[359645059,1746214242494,-450.0,0.00019723,2]
[359645060,1746214242505,-450.0,0.00019723,2]
[359645061,1746214242517,-450.0,0.00019723,2]
[359645062,1746214242527,-652.69,0.00019723,2]
[359645063,1746214242537,-730.87,0.00019723,2]
[359645064,1746214242547,-604.23,0.00019723,2]
[359645065,1746214242559,-450.0,0.00019723,2]
[359645066,1746214242569,-450.0,0.00019723,2]
[359645067,1746214242578,-450.0,0.00019723,2]
[359645068,1746214242588,-450.0,0.00019723,2]
[359645069,1746214242599,-510.4,0.00019723,2]
[359645070,1746214242608,-450.0,0.00019723,2]
[359645071,1746214242618,-450.0,0.00019723,2]
[359645072,1746214242629,-450.0,0.00019723,2]
[359645073,1746214242639,-450.0,0.00019723,2]
[359645074,1746214242650,-450.0,0.00019723,2]
[359645077,1746214242661,-450.0,0.00019723,2]
[359645079,1746214242674,-450.0,0.00019723,2]
[359645081,1746214242686,-450.0,0.00019723,2]
[359645082,1746214242696,-450.0,0.00019723,2]
[359645083,1746214242706,-450.0,0.00019723,2]
[359645084,1746214242716,-450.0,0.00019723,2]
[359645085,1746214242726,-450.0,0.00019723,2]
[359645086,1746214242736,-450.0,0.00019723,2]
[359645087,1746214242746,-450.0,0.00019723,2]
[359645088,1746214242756,-617.56,0.00019723,2]
[359645089,1746214242765,-522.10119627,0.00019723,2]
[359645090,1746214242775,-450.0,0.00019723,2]
[359645091,1746214242786,-586.28,0.00019723,2]
[359645092,1746214242796,-450.0,0.00019723,2]
[359645093,1746214242805,-554.09941886,0.00019723,2]
[359645094,1746214242816,-1588.95,0.00019723,2]
[359645096,1746214242826,-450.0,0.00019723,2]
[359645097,1746214242836,-450.0,0.00019723,2]
[359645098,1746214242848,-450.0,0.00019723,2]
[359645099,1746214242858,-466.19,0.00019723,2]
[359645100,1746214242869,-570.57214443,0.00019723,2]
[359645101,1746214242879,-219.28933762,0.00019723,2]
[359645102,1746214242889,-450.0,0.00019723,2]
[359645103,1746214242899,-766.2,0.00019723,2]
[359645104,1746214242910,-450.0,0.00019723,2]
[359645105,1746214242920,-450.0,0.00019723,2]
[359645106,1746214242930,-450.0,0.00019723,2]
[359645107,1746214242939,-458.27,0.00019723,2]
[359645108,1746214242947,-450.0,0.00019723,2]
[359645109,1746214242957,-450.0,0.00019723,2]
[359645110,1746214242966,-750.76,0.00019723,2]
[359645111,1746214242975,-450.0,0.00019723,2]
[359645112,1746214242985,-450.0,0.00019723,2]
[359645113,1746214242996,-542.43,0.00019723,2]
[359645114,1746214243007,-450.0,0.00019723,2]
[359645115,1746214243017,-450.0,0.00019723,2]
[359645116,1746214243027,-515.82,0.00019723,2]
[359645117,1746214243037,-450.0,0.00019723,2]
[359645118,1746214243046,-584.04,0.00019723,2]
[359645119,1746214243056,-450.0,0.00019723,2]
[359645120,1746214243066,-450.0,0.00019723,2]
[359645121,1746214243076,-450.0,0.00019723,2]
[359645122,1746214243086,-450.0,0.00019723,2]
[359645123,1746214243095,-759.91,0.00019723,2]
[359645124,1746214243105,-450.0,0.00019723,2]
[359645125,1746214243115,-450.0,0.00019723,2]
[359645126,1746214243124,-452.74,0.00019723,2]
[359645127,1746214243134,-750.17,0.00019723,2]
[359645128,1746214243143,-450.0,0.00019723,2]
[359645129,1746214243155,-450.0,0.00019723,2]
[359645130,1746214243165,-450.0,0.00019723,2]
[359645131,1746214243174,-450.0,0.00019723,2]
[359645132,1746214243184,-450.0,0.00019723,2]
[359645133,1746214243194,-450.0,0.00019723,2]
[359645134,1746214243204,-450.0,0.00019723,2]
[359645135,1746214243213,-450.0,0.00019723,2]
[359645137,1746214243223,-450.0,0.00019723,2]
[359645139,1746214243233,-450.0,0.00019723,2]
[359645141,1746214243244,-670.76,0.00019723,2]
[359645143,1746214243253,-450.0,0.00019723,2]
[359645145,1746214243263,-450.0,0.00019723,2]
[359645146,1746214243273,-627.79,0.00019723,2]
[359645147,1746214243283,-1832.57,0.00019723,2]
[359645149,1746214243293,-525.24,0.00019723,2]
[359645151,1746214243303,-607.36,0.00019723,2]
[359645153,1746214243313,-450.0,0.00019723,2]
[359645155,1746214243322,-450.0,0.00019723,2]
[359645157,1746214243332,-450.0,0.00019723,2]
[359645160,1746214243342,-1215.77,0.00019723,2]
[359645162,1746214243353,-629.16,0.00019723,2]
[359645163,1746214243363,-450.0,0.00019723,2]
[359645164,1746214243373,-450.0,0.00019723,2]
[359645166,1746214243383,-450.0,0.00019723,2]
[359645168,1746214243392,-282.44482249,0.00019723,2]
[359645170,1746214243404,-450.0,0.00019723,2]
[359645171,1746214243413,-636.91,0.00019723,2]
[359645172,1746214243423,-450.0,0.00019723,2]
[359645173,1746214243436,-450.0,0.00019723,2]
[359645174,1746214243445,-450.0,0.00019723,2]
[359645175,1746214243455,-450.0,0.00019723,2]
[359645176,1746214243465,-450.0,0.00019723,2]
[359645177,1746214243475,-450.0,0.00019723,2]
[359645178,1746214243484,-812.19,0.00019723,2]
[359645179,1746214243494,-450.0,0.00019723,2]
[359645180,1746214243505,-521.48,0.00019723,2]
[359645181,1746214243515,-450.0,0.00019723,2]
[359645182,1746214243525,-450.0,0.00019723,2]
[359645183,1746214243535,-450.0,0.00019723,2]
[359645184,1746214243544,-793.73,0.00019723,2]
[359645185,1746214243554,-450.0,0.00019723,2]
[359645186,1746214243563,-450.0,0.00019723,2]
[359645187,1746214243573,-450.0,0.00019723,2]
[359645188,1746214243583,-616.97,0.00019723,2]
[359645189,1746214243593,-450.0,0.00019723,2]
[359645190,1746214243603,-1505.61,0.00019723,2]
[359645191,1746214243613,-1723.89,0.00019723,2]
[359645192,1746214243623,-543.65,0.00019723,2]
[359645193,1746214243633,-226.52449439,0.00019723,2]
[359645194,1746214243643,-450.0,0.00019723,2]
[359645195,1746214243655,-450.0,0.00019723,2]
[359645196,1746214243664,-544.34,0.00019723,2]